fUST/lending_fUST_20250519
["ID","MTS","AMOUNT","RATE_DAILY","PERIOD"]
[361604182,1747633851644,-450.0,0.00024109,2]
[361604184,1747633851653,-1226.4,0.00024109,2]
[361604186,1747633851663,-450.0,0.00024109,2]
[361604188,1747633851672,-935.25,0.00024109,2]
[361604190,1747633851681,-450.0,0.00024109,2]
[361604192,1747633851690,-4043.29,0.00024198,6]
[361604194,1747633851700,-517.05333442,0.00024245,10]
[361604196,1747633851710,-2791.07,0.000243,7]
[361604198,1747633851720,-2512.81757182,0.00024378,17]
[361604200,1747633851729,-2998.99,0.00024383,2]
[361604202,1747633851738,-633.58,0.00024383,2]
[361604204,1747633851747,-765.19,0.00024383,2]
[361604206,1747633851757,-957.57,0.00024383,2]
[361604208,1747633851767,-450.0,0.00024383,2]
[361604210,1747633851776,-898.49,0.00024383,2]
[361604212,1747633851789,-450.0,0.00024383,2]
[361604214,1747633851798,-1226.4,0.00024383,2]
[361604216,1747633851807,-213.73716957,0.00024383,2]
[361604218,1747633851816,-935.25,0.00024383,2]
[361604220,1747633851827,-450.0,0.00024383,2]
[361604222,1747633851836,-2023.59,0.000244,7]
[361604224,1747633851845,-6000.0,0.00024482,2]
[361604226,1747633851854,-517.05333442,0.00024521,11]
[361604228,1747633851864,-404.0,0.00024653,2]
[361604230,1747633851873,-400.10197713,0.00024657,2]
[361604232,1747633851883,-500.0,0.00024657,2]
[361604233,1747633851892,-2998.99,0.00024657,2]
[361604234,1747633851901,-633.58,0.00024657,2]
[361604235,1747633851910,-1277.41,0.00024657,2]
[361604236,1747633851919,-765.19,0.00024657,2]
[361604237,1747633851928,-957.57,0.00024657,2]
[361604238,1747633851938,-450.0,0.00024657,2]
[361604239,1747633851947,-898.49,0.00024657,2]
[361604240,1747633851956,-197.98060829,0.00024657,2]
[361604241,1747633851965,-1226.4,0.00024657,2]
[361604242,1747633851975,-935.25,0.00024657,2]
[361604243,1747633851984,-450.0,0.00024657,2]
[361604244,1747633851993,-180.0,0.00024658,3]
[361604246,1747633852002,-500.0,0.00024658,30]
[361604248,1747633852011,-500.0,0.00024658,30]
[361604250,1747633852020,-1000.0,0.00024658,2]
[361604252,1747633852029,-1000.0,0.00024658,2]
[361604254,1747633852038,-380.0,0.00024658,2]
[361604256,1747633852047,-485.53197692,0.00024658,2]
[361604257,1747633852057,-6088.06579706,0.0002468,4]
[361604259,1747633852066,-151.0,0.00024725,2]
[361604262,1747633852075,-160.83006194,0.00024729,5]
[361604263,1747633852085,-3996.41450068,0.00024733,2]
[361604265,1747633852093,-1277.683,0.00024789,18]
[361604267,1747633852103,-515680.75791451,0.0002479,15]
[361604269,1747633852112,-156.182326,0.0002479,7]
[361604271,1747633852120,-1000.0,0.00024795,2]
[361604273,1747633852131,-517.05333442,0.00024797,11]
[361604275,1747633852140,-46691.0,0.000248,2]
[361604277,1747633852149,-166976.11,0.000248,2]
[361604279,1747633852158,-200.0,0.000248,2]
[361604281,1747633852168,-500.0,0.00024812,2]
[361604283,1747633852177,-200.0,0.00024869,2]
[361604285,1747633852186,-143605.41878397,0.000249,2]
[361604287,1747633852195,-2007.72,0.000249,7]
[361604289,1747633852204,-175672.21,0.000249,7]
[361604291,1747633852214,-10009.0,0.000249,7]
[361604293,1747633852223,-744536.564062,0.000249,2]
[361604295,1747633852232,-36233.39209578,0.00024901,2]
[361604297,1747633852241,-22281.4216155,0.00024904,10]
[361604299,1747633852250,-36233.39209578,0.0002491,2]
[361604301,1747633852259,-36255.71167586,0.00024918,2]
[361604303,1747633852268,-36255.71167586,0.00024924,2]
[361604305,1747633852277,-2998.99,0.00024931,2]
[361604307,1747633852286,-633.58,0.00024931,2]
[361604309,1747633852295,-765.19,0.00024931,2]
[361604311,1747633852304,-957.57,0.00024931,2]
[361604313,1747633852314,-450.0,0.00024931,2]
[361604315,1747633852323,-898.49,0.00024931,2]
[361604317,1747633852332,-1226.4,0.00024931,2]
[361604319,1747633852341,-935.25,0.00024931,2]
[361604321,1747633852351,-450.0,0.00024931,2]
[361604323,1747633852359,-1000.0,0.00024932,2]
[361604325,1747633852370,-36233.39209578,0.0002496,2]
[361604327,1747633852379,-700.0,0.00024971,7]
[361604329,1747633852388,-36255.71167586,0.00024971,2]
[361604331,1747633852398,-36233.39209578,0.00024976,2]
[361604333,1747633852407,-36255.71167586,0.00024986,2]
[361604335,1747633852416,-21586.57391877,0.00025,10]
[361604337,1747633852426,-193.00455283,0.00025,3]
[361604339,1747633852435,-150.0,0.00025,3]
[361604341,1747633852444,-500.0,0.00025,2]
[361604343,1747633852454,-5000.0,0.00025,3]
[361604355,1747633852552,-5000.0,0.00025,5]
[361604357,1747633852561,-1000.0,0.00025,2]
[361604359,1747633852571,-1000.35072337,0.00025,10]
[361604361,1747633852580,-1059.21430891,0.00025,2]
[361604363,1747633852589,-15841.33984747,0.00025,2]
[361604365,1747633852599,-2608.45138861,0.00025,2]
[361604367,1747633852608,-206.91937746,0.00025,2]
[361604369,1747633852617,-10364.0,0.00025,2]
[361604371,1747633852626,-500.0,0.00025,2]
[361604373,1747633852635,-120000.0,0.00025,2]
[361604375,1747633852644,-5000.0,0.00025,5]
[361604377,1747633852653,-5000.0,0.00025,5]
[361604379,1747633852662,-5000.0,0.00025,5]
[361604381,1747633852672,-5000.0,0.00025,5]
[361604383,1747633852681,-5000.0,0.00025,5]
[361604385,1747633852691,-5000.0,0.00025,5]
[361604387,1747633852700,-5000.0,0.00025,5]
[361604389,1747633852710,-5000.0,0.00025,5]
[361604391,1747633852719,-5000.0,0.00025,5]
[361604393,1747633852728,-5000.0,0.00025,5]
[361604395,1747633852737,-5000.0,0.00025,5]
[361604396,1747633852746,-5000.0,0.00025,5]
[361604398,1747633852756,-5000.0,0.00025,5]
[361604401,1747633852766,-2146.881,0.00025,5]
[361604402,1747633852775,-676.64919352,0.00025,2]
[361604404,1747633852787,-100000.0,0.00025,30]
[361604406,1747633852797,-417.0,0.00025,30]
[361604408,1747633852806,-4023.0248273,0.00025,14]
[361604410,1747633852816,-300.0,0.00025,30]
[361604413,1747633852827,-13712.63978578,0.00025,2]
[361604414,1747633852836,-1012.04,0.00025,2]
[361604416,1747633852846,-2017.11332954,0.00025,14]
[361604418,1747633852855,-1000.0,0.00025,25]
[361604420,1747633852867,-33381.24442321,0.00025,7]
[361604423,1747633852877,-200.83,0.00025,2]
[361604424,1747633852887,-2633.0,0.00025,30]
[361604426,1747633852897,-3233.3504853,0.00025,2]
[361604428,1747633852906,-1001.51271476,0.00025,10]
[361604430,1747633852915,-5000.0,0.00025,30]
[361604432,1747633852925,-411629.14309011,0.00025,20]
[361604434,1747633852934,-1962.888416,0.00025,5]
[361604436,1747633852943,-314.45853212,0.00025,10]
[361604438,1747633852952,-422.59250115,0.00025,3]
[361604440,1747633852961,-314.45853212,0.00025,30]
[361604442,1747633852970,-422.59250115,0.00025,10]
[361604445,1747633852980,-422.59250115,0.00025,30]
[361604447,1747633852989,-422.59250115,0.00025,7]
[361604449,1747633852998,-998.68447496,0.00025,10]
[361604450,1747633853007,-202.623495,0.00025,2]
[361604452,1747633853016,-160.0,0.00025,3]
[361604454,1747633853025,-160.0,0.00025,10]
[361604456,1747633853035,-160.0,0.00025,30]
[361604459,1747633853046,-536.0,0.00025,7]
[361604461,1747633853054,-1874.78351059,0.00025029,2]
[361604463,1747633853064,-517.05333442,0.00025072,12]
[361604465,1747633853073,-250.0,0.000251,2]
[361604467,1747633853083,-500.0,0.00025142,2]
[361604469,1747633853092,-510.23503923,0.00025151,2]
[361604470,1747633853101,-182684.96889763,0.00025163,20]
[361604537,1747633853728,-499.16355,0.00013426,2]
[361604540,1747633853739,-53757.94680382,0.00025163,20]
[361604542,1747633853751,-978.22565323,0.00025163,20]
[361604545,1747633853911,-412.60625222,0.00025163,20]
[361604546,1747633853928,-267.82771869,0.00025163,20]
[361604547,1747633853941,-9696.68301672,0.00025163,20]
[361604842,1747634687887,1000.0,0.00025,120]
[361604903,1747635031984,-469.321194,0.00013562,2]
[361604904,1747635031995,-469.321194,0.00013699,2]
[361604905,1747635032004,-253.2262398,0.00017775,2]
[361604906,1747635032014,-150.097,0.00018729,2]
[361604907,1747635032024,-998.68447496,0.00018742,2]
[361604908,1747635032034,-160.0,0.00018742,2]
[361604909,1747635032043,-500.0,0.00018777,2]
[361604910,1747635032054,-348.37657478,0.000189,2]
[361604911,1747635032064,-300.0,0.00018986,2]
[361604912,1747635032074,-50000.0,0.00018987,2]
[361604913,1747635032083,-500.0,0.00018987,2]
[361604914,1747635032093,-500.0,0.00018987,2]
[361604915,1747635032103,-500.0,0.00018987,2]
[361604916,1747635032112,-500.0,0.00018987,2]
[361604917,1747635032122,-245.98865993,0.00018987,2]
[361604918,1747635032148,-254.01134007,0.00018987,2]
[361604919,1747635032157,-171.67737934,0.00018987,2]
[361604929,1747635037864,-422.59250115,0.00017753,2]
[361604930,1747635037874,-300.0,0.00018986,2]
[361604931,1747635037884,-151.0,0.00018988,2]
[361604932,1747635037897,-209.84858221,0.00018988,2]
[361604933,1747635037907,-404.71,0.00019,2]
[361604935,1747635037916,-348.37657469,0.00019141,2]
[361604937,1747635037927,-505.37067928,0.00019178,2]
[361604939,1747635037936,-450.0,0.00019178,2]
[361604941,1747635037945,-350.73129343,0.00019178,2]
[361604943,1747635037955,-350.75660032,0.00019178,2]
[361604945,1747635037963,-450.0,0.00019178,2]
[361604947,1747635037973,-450.0,0.00019178,2]
[361604949,1747635037982,-450.0,0.00019178,2]
[361604951,1747635037992,-362.63018133,0.00019178,2]
[361604953,1747635038001,-458.45112281,0.00019178,2]
[361604955,1747635038010,-450.0,0.00019178,2]
[361604957,1747635038020,-450.0,0.00019178,2]
[361604959,1747635038031,-462.64756632,0.00019178,2]
[361604961,1747635038040,-450.0,0.00019178,2]
[361604963,1747635038050,-461.23570932,0.00019178,2]
[361604964,1747635038059,-369.91681,0.00019178,2]
[361604965,1747635038067,-305.0052606,0.00019178,2]
[361604966,1747635038079,-144.9947394,0.00019178,2]
[361604968,1747635038088,-409.73666209,0.00019178,2]
[361604970,1747635038098,-239.24760379,0.00019178,2]
[361604972,1747635038107,-450.0,0.00019178,2]
[361604974,1747635038117,-354.37795326,0.00019178,2]
[361604975,1747635038127,-450.0,0.00019178,2]
[361604976,1747635038136,-450.0,0.00019178,2]
[361604977,1747635038149,-401.43292852,0.00019178,2]
[361604979,1747635038159,-201.578614,0.00019178,2]
[361604981,1747635038168,-404.0,0.00019299,2]
[361604983,1747635038178,-348.37657469,0.00019383,2]
[361604985,1747635038187,-355.62328219,0.00019452,2]
[361604998,1747635040210,-422.59250115,0.00017575,2]
[361605000,1747635040221,-500.0,0.00018986,2]
[361605002,1747635040231,-500.0,0.00018986,2]
[361605004,1747635040240,-500.0,0.00018986,2]
[361605006,1747635040251,-328.32262066,0.00018986,2]
[361605008,1747635040260,-158.36961567,0.00018986,2]
[361605010,1747635040269,-500.0,0.00018986,2]
[361605012,1747635040283,-600.2290869,0.00018986,2]
[361605014,1747635040293,-500.0,0.00018986,2]
[361605016,1747635040302,-464.67114983,0.00018986,2]
[361605018,1747635040312,-500.0,0.00018986,2]
[361605020,1747635040323,-1.45791364,0.00019452,2]
[361605022,1747635040333,-358.6283222,0.00019452,2]
[361605024,1747635040342,-453.92792826,0.00019452,2]
[361605026,1747635040351,-319.03523282,0.00019452,2]
[361605028,1747635040360,-355.9287253,0.00019452,2]
[361605030,1747635040370,-450.0,0.00019452,2]
[361605032,1747635040379,-232.25677186,0.00019452,2]
[361605034,1747635040392,-237.71275705,0.00019452,2]
[361605036,1747635040403,-303.92787967,0.00019452,2]
[361605038,1747635040414,-303.15085433,0.00019452,2]
[361605040,1747635040423,-348.37657469,0.00019624,2]
[361605042,1747635040433,-346.28799915,0.00019726,2]
[361605045,1747635040448,-348.37657469,0.00019866,2]
[361605047,1747635040464,-157.85,0.0002,2]
[361605049,1747635040474,-348.37657469,0.00020107,2]
[361605052,1747635040485,-469.321194,0.00020187,2]
[361605054,1747635040495,-251.0,0.00020274,3]
[361605056,1747635040505,-348.37657469,0.00020348,3]
[361605058,1747635040515,-260.11466014,0.00020357,2]
[361605060,1747635040525,-503.52321587,0.00020373,2]
[361605062,1747635040534,-348.37657469,0.0002059,3]
[361605064,1747635040545,-348.37657469,0.00020831,4]
[361605066,1747635040555,-170.057,0.00020859,2]
[361605068,1747635040564,-348.37657469,0.00021072,4]
[361605070,1747635040575,-348.37657469,0.00021314,5]
[361605072,1747635040585,-348.37657469,0.00021555,5]
[361605074,1747635040595,-500.0,0.00021683,2]
[361605076,1747635040605,-500.0,0.00021752,2]
[361605078,1747635040615,-348.37657469,0.00021797,6]
[361605080,1747635040626,-348.37657469,0.00022038,6]
[361605082,1747635040637,-348.37657469,0.00022279,6]
[361605084,1747635040648,-404.0,0.00022299,2]
[361605086,1747635040658,-348.37657469,0.00022521,7]
[361605089,1747635040668,-348.37657469,0.00022762,7]
[361605091,1747635040677,-500.0,0.00022779,2]
[361605093,1747635040687,-176.0,0.00023,7]
[361605095,1747635040697,-348.37657469,0.00023003,8]
[361605097,1747635040707,-348.37657469,0.00023245,8]
[361605099,1747635040716,-237.01918363,0.00023381,9]
[361605101,1747635040726,-348.37657469,0.00023486,9]
[361605103,1747635040737,-348.37657469,0.00023728,9]
[361605105,1747635040747,-500.0,0.00023875,2]
[361605107,1747635040756,-503.86935526,0.00023906,2]
[361605109,1747635040765,-200.0,0.0002391,9]
[361605111,1747635040775,-348.37657469,0.00023969,10]
[361605113,1747635040784,-1000.0,0.00024,24]
[361605115,1747635040793,-348.37657469,0.0002421,10]
[361605117,1747635040803,-1932.685305,0.00024396,2]
[361605119,1747635040814,-348.37657469,0.00024452,11]
[361605121,1747635040823,-168.54190298,0.00024472,2]
[361605123,1747635040832,-1880.81074955,0.00024557,2]
[361605125,1747635040846,-3807.68698659,0.00024557,2]
[361605396,1747635043262,-690.62736126,0.00024557,2]
[361605398,1747635043275,-3980.26564288,0.00024557,2]
[361605400,1747635043287,-293.85068442,0.00024572,2]
[361605402,1747635043296,-1214.15,0.000246,7]
[361605404,1747635043306,-500.0,0.00024656,2]
[361605407,1747635043316,-500.0,0.00024656,2]
[361605408,1747635043326,-500.0,0.00024656,2]
[361605411,1747635043337,-485.17496942,0.00024656,2]
[361605412,1747635043347,-500.0,0.00024656,2]
[361605415,1747635043356,-500.0,0.00024656,2]
[361605417,1747635043365,-500.0,0.00024656,2]
[361605419,1747635043375,-500.0,0.00024656,2]
[361605422,1747635043383,-511.69958051,0.00024656,2]
[361605423,1747635043394,-393.69187014,0.00024656,2]
[361605426,1747635043403,-157.85,0.00024657,2]
[361605428,1747635043413,-402.17835952,0.00024657,4]
[361605430,1747635043423,-450.0,0.00024657,4]
[361605432,1747635043432,-311.55930267,0.00024657,4]
[361605434,1747635043441,-450.0,0.00024657,4]
[361605436,1747635043451,-450.0,0.00024657,4]
[361605438,1747635043460,-450.0,0.00024657,4]
[361605440,1747635043470,-430.0,0.00024657,4]
[361605442,1747635043479,-430.0,0.00024657,4]
[361605444,1747635043489,-210.70063298,0.00024657,4]
[361605446,1747635043498,-350.0,0.00024657,4]
[361605448,1747635043508,-430.0,0.00024657,4]
[361605450,1747635043517,-430.0,0.00024657,4]
[361605452,1747635043526,-430.0,0.00024657,4]
[361605454,1747635043536,-324.44320269,0.00024657,4]
[361605456,1747635043545,-490.0,0.00024657,4]
[361605458,1747635043556,-401.45002907,0.00024657,4]
[361605460,1747635043565,-430.0,0.00024657,4]
[361605462,1747635043578,-430.0,0.00024657,4]
[361605464,1747635043596,-346.94766278,0.00024657,4]
[361605466,1747635043607,-407.18111772,0.00024657,4]
[361605467,1747635043617,-279.37448266,0.00024657,4]
[361605469,1747635043626,-430.0,0.00024657,4]
[361605471,1747635043635,-470.0,0.00024657,4]
[361605473,1747635043646,-252.90771608,0.00024657,4]
[361605475,1747635043655,-430.0,0.00024657,4]
[361605477,1747635043665,-374.04471442,0.00024657,4]
[361605479,1747635043674,-452.60815743,0.00024657,4]
[361605481,1747635043685,-350.0,0.00024657,4]
[361605483,1747635043694,-430.0,0.00024657,4]
[361605485,1747635043704,-339.61181677,0.00024657,4]
[361605487,1747635043717,-352.75920492,0.00024657,4]
[361605489,1747635043726,-452.97398716,0.00024657,4]
[361605491,1747635043735,-404.87553884,0.00024657,4]
[361605493,1747635043746,-513.50747868,0.00024657,4]
[361605495,1747635043755,-430.0,0.00024657,4]
[361605497,1747635043765,-430.0,0.00024657,4]
[361605500,1747635043774,-430.0,0.00024657,4]
[361605502,1747635043784,-510.0,0.00024657,4]
[361605504,1747635043793,-430.0,0.00024657,4]
[361605506,1747635043803,-324.03889574,0.00024657,4]
[361605508,1747635043813,-430.0,0.00024657,4]
[361605510,1747635043822,-322.81304656,0.00024657,4]
[361605512,1747635043832,-430.0,0.00024657,4]
[361605514,1747635043842,-430.0,0.00024657,4]
[361605516,1747635043851,-490.0,0.00024657,4]
[361605518,1747635043860,-227.69818404,0.00024657,4]
[361605520,1747635043870,-422.57986888,0.00024657,4]
[361605522,1747635043879,-357.85057093,0.00024657,4]
[361605524,1747635043892,-265.65745744,0.00024657,4]
[361605526,1747635043902,-495.13762339,0.00024657,4]
[361605528,1747635043912,-357.61351071,0.00024657,4]
[361605530,1747635043922,-384.54181847,0.00024657,4]
[361605532,1747635043932,-353.6529573,0.00024657,4]
[361605534,1747635043942,-353.88917433,0.00024657,4]
[361605536,1747635043951,-357.7256588,0.00024657,4]
[361605538,1747635043961,-450.0,0.00024657,4]
[361605540,1747635043971,-267.59096717,0.00024657,4]
[361605542,1747635043980,-450.0,0.00024657,4]
[361605544,1747635043990,-380.88518851,0.00024657,4]
[361605546,1747635043999,-450.95061904,0.00024657,4]
[361605548,1747635044009,-450.0,0.00024657,4]
[361605550,1747635044019,-260.86090713,0.00024657,4]
[361605552,1747635044028,-463.82826181,0.00024657,4]
[361605554,1747635044037,-453.77407887,0.00024657,4]
[361605556,1747635044046,-430.0,0.00024657,4]
[361605558,1747635044056,-376.68597132,0.00024657,4]
[361605560,1747635044066,-357.56847809,0.00024657,4]
[361605562,1747635044075,-430.0,0.00024657,4]
[361605564,1747635044085,-206.2808352,0.00024657,4]
[361605566,1747635044096,-456.76671382,0.00024657,4]
[361605568,1747635044106,-406.07733257,0.00024657,4]
[361605570,1747635044116,-402.70533609,0.00024657,4]
[361605572,1747635044126,-416.15881375,0.00024657,4]
[361605574,1747635044136,-450.0,0.00024657,4]
[361605576,1747635044154,-430.0,0.00024657,4]
[361605578,1747635044166,-430.0,0.00024657,4]
[361605580,1747635044177,-213.34506491,0.00024657,4]
[361605582,1747635044189,-405.48983233,0.00024657,4]
[361605584,1747635044201,-569.17571973,0.00024657,4]
[361605586,1747635044212,-237.50804903,0.00024657,4]
[361605588,1747635044221,-450.0,0.00024657,4]
[361605590,1747635044230,-450.0,0.00024657,4]
[361605592,1747635044240,-400.00000001,0.00024657,4]
[361605594,1747635044250,-388.80644904,0.00024657,4]
[361605596,1747635044260,-430.0,0.00024657,4]
[361605598,1747635044269,-485.07919803,0.00024657,4]
[361605600,1747635044280,-450.0,0.00024657,4]
[361605602,1747635044289,-430.0,0.00024657,4]
[361605604,1747635044299,-430.0,0.00024657,4]
[361605606,1747635044307,-490.0,0.00024657,4]
[361605608,1747635044317,-430.0,0.00024657,4]
[361605610,1747635044326,-477.44663996,0.00024657,4]
[361605612,1747635044335,-430.0,0.00024657,4]
[361605614,1747635044345,-401.63623618,0.00024657,4]
[361605616,1747635044355,-303.75499854,0.00024657,4]
[361605618,1747635044364,-430.0,0.00024657,4]
[361605620,1747635044376,-483.91881205,0.00024657,4]
[361605622,1747635044386,-395.30314122,0.00024657,4]
[361605625,1747635044397,-430.0,0.00024657,4]
[361605627,1747635044406,-244.55809472,0.00024657,4]
[361605629,1747635044415,-531.18688415,0.00024657,4]
[361605631,1747635044424,-430.0,0.00024657,4]
[361605633,1747635044435,-472.53405564,0.00024657,4]
[361605635,1747635044444,-430.0,0.00024657,4]
[361605637,1747635044454,-323.41023216,0.00024657,4]
[361605639,1747635044463,-430.0,0.00024657,4]
[361605641,1747635044472,-483.4278924,0.00024657,4]
[361605643,1747635044482,-355.69498018,0.00024657,4]
[361605645,1747635044491,-430.0,0.00024657,4]
[361605647,1747635044501,-430.0,0.00024657,4]
[361605649,1747635044510,-420.0,0.00024657,4]
[361605651,1747635044519,-577.82492884,0.00024657,4]
[361605653,1747635044529,-358.4520332,0.00024657,4]
[361605655,1747635044538,-430.0,0.00024657,4]
[361605657,1747635044547,-400.30062426,0.00024657,4]
[361605659,1747635044557,-483.78414405,0.00024657,4]
[361605661,1747635044567,-350.49230863,0.00024657,4]
[361605663,1747635044576,-430.0,0.00024657,4]
[361605665,1747635044586,-511.22281972,0.00024657,4]
[361605667,1747635044595,-354.66991659,0.00024657,4]
[361605669,1747635044604,-157.67825871,0.00024657,4]
[361605684,1747635044737,-196.01095106,0.00024657,4]
[361605686,1747635044746,-430.0,0.00024657,4]
[361605688,1747635044755,-476.00629058,0.00024657,4]
[361605691,1747635044766,-430.0,0.00024657,4]
[361605693,1747635044775,-470.0,0.00024657,4]
[361605695,1747635044785,-363.39676374,0.00024657,4]
[361605697,1747635044794,-464.27381962,0.00024657,4]
[361605699,1747635044804,-364.55035645,0.00024657,4]
[361605701,1747635044813,-361.82615401,0.00024657,4]
[361605703,1747635044823,-430.0,0.00024657,4]
[361605705,1747635044832,-473.68929896,0.00024657,4]
[361605707,1747635044841,-354.8825413,0.00024657,4]
[361605709,1747635044850,-430.0,0.00024657,4]
[361605711,1747635044859,-365.69965358,0.00024657,4]
[361605713,1747635044868,-470.0,0.00024657,4]
[361605715,1747635044877,-355.06376482,0.00024657,4]
[361605716,1747635044886,-1036.53709069,0.00024657,4]
[361605719,1747635044899,-430.0,0.00024657,4]
[361605721,1747635044909,-321.41704221,0.00024657,4]
[361605723,1747635044918,-430.0,0.00024657,4]
[361605724,1747635044927,-430.0,0.00024657,4]
[361605727,1747635044937,-490.0,0.00024657,4]
[361605729,1747635044946,-354.47107749,0.00024657,4]
[361605731,1747635044955,-354.94312132,0.00024657,4]
[361605733,1747635044964,-362.77026049,0.00024657,4]
[361605734,1747635044973,-430.0,0.00024657,4]
[361605736,1747635044983,-439.01854562,0.00024657,4]
[361605738,1747635044993,-420.0,0.00024657,4]
[361605740,1747635045003,-359.91050395,0.00024657,4]
[361605743,1747635045013,-482.05406042,0.00024657,4]
[361605745,1747635045023,-376.66971573,0.00024657,4]
[361605747,1747635045032,-430.0,0.00024657,4]
[361605748,1747635045041,-364.65394215,0.00024657,4]
[361605750,1747635045051,-430.0,0.00024657,4]
[361605753,1747635045060,-420.0,0.00024657,4]
[361605755,1747635045070,-470.12863455,0.00024657,4]
[361605757,1747635045079,-430.0,0.00024657,4]
[361605759,1747635045089,-159.30589285,0.00024657,4]
[361605761,1747635045099,-466.81032424,0.00024657,4]
[361605763,1747635045108,-430.0,0.00024657,4]
[361605765,1747635045117,-430.0,0.00024657,4]
[361605767,1747635045126,-420.0,0.00024657,4]
[361605769,1747635045136,-320.73047115,0.00024657,4]
[361605771,1747635045147,-362.29915738,0.00024657,4]
[361605773,1747635045157,-430.0,0.00024657,4]
[361605775,1747635045166,-321.39702051,0.00024657,4]
[361605777,1747635045175,-357.39627465,0.00024657,4]
[361605779,1747635045184,-430.0,0.00024657,4]
[361605781,1747635045194,-368.93220793,0.00024657,4]
[361605783,1747635045207,-344.9517251,0.00024657,4]
[361605785,1747635045216,-364.16638328,0.00024657,4]
[361605787,1747635045225,-363.13014817,0.00024657,4]
[361605789,1747635045235,-188.80009099,0.00024657,4]
[361605791,1747635045244,-370.27034835,0.00024657,4]
[361605793,1747635045254,-430.0,0.00024657,4]
[361605795,1747635045263,-394.96118866,0.00024657,4]
[361605797,1747635045272,-473.83841884,0.00024657,4]
[361605799,1747635045283,-430.0,0.00024657,4]
[361605801,1747635045292,-470.0,0.00024657,4]
[361605803,1747635045301,-430.0,0.00024657,4]
[361605805,1747635045310,-330.0769539,0.00024657,4]
[361605807,1747635045319,-430.0,0.00024657,2]
[361605809,1747635045329,-253.58675478,0.00024657,2]
[361605811,1747635045339,-430.0,0.00024657,4]
[361605813,1747635045348,-320.9141955,0.00024657,4]
[361605815,1747635045357,-359.31344587,0.00024657,4]
[361605817,1747635045366,-328.89642057,0.00024657,4]
[361605819,1747635045376,-430.0,0.00024657,4]
[361605821,1747635045385,-475.15700086,0.00024657,4]
[361605823,1747635045396,-430.0,0.00024657,4]
[361605825,1747635045406,-323.11901148,0.00024657,4]
[361605827,1747635045418,-360.52560229,0.00024657,4]
[361605830,1747635045427,-430.0,0.00024657,4]
[361605833,1747635045436,-258.82756976,0.00024657,4]
[361605835,1747635045445,-174.71450045,0.00024657,4]
[361605839,1747635045455,-430.0,0.00024657,4]
[361605842,1747635045463,-430.0,0.00024657,4]
[361605845,1747635045473,-470.0,0.00024657,4]
[361605848,1747635045483,-321.84828547,0.00024657,4]
[361605851,1747635045492,-430.0,0.00024657,4]
[361605853,1747635045501,-360.62372662,0.00024657,4]
[361605855,1747635045510,-430.0,0.00024657,4]
[361605857,1747635045519,-420.0,0.00024657,4]
[361605859,1747635045528,-442.70925418,0.00024657,4]
[361605861,1747635045538,-490.51826207,0.00024657,4]
[361605863,1747635045547,-406.39949878,0.00024657,4]
[361605865,1747635045556,-430.0,0.00024657,4]
[361605867,1747635045565,-373.92974488,0.00024657,4]
[361605869,1747635045574,-430.0,0.00024657,4]
[361605870,1747635045583,-221.58339719,0.00024657,4]
[361605872,1747635045592,-430.0,0.00024657,4]
[361605889,1747635045734,-473.74689769,0.00024657,4]
[361605891,1747635045745,-430.0,0.00024657,4]
[361605893,1747635045755,-470.0,0.00024657,4]
[361605895,1747635045764,-430.0,0.00024657,4]
[361605897,1747635045773,-470.0,0.00024657,4]